fUST/lending_fUST_20250408
["ID","MTS","AMOUNT","RATE_DAILY","PERIOD"]
[357484932,1744081864651,-809.84,0.00026575,2]
[357484933,1744081864661,-764.08,0.00026575,2]
[357484934,1744081864671,-511.46,0.00026575,2]
[357484935,1744081864681,-921.48,0.00026575,2]
[357484936,1744081864691,-550.16,0.00026575,2]
[357484937,1744081864700,-930.44,0.00026575,2]
[357484938,1744081864711,-647.67,0.00026575,2]
[357484939,1744081864721,-500.0,0.00026575,2]
[357484940,1744081864731,-556.88,0.00026575,2]
[357484941,1744081864740,-819.25,0.00026575,2]
[357484942,1744081864750,-500.0,0.00026575,2]
[357484943,1744081864759,-789.79,0.00026575,2]
[357484944,1744081864768,-500.0,0.00026575,2]
[357484945,1744081864778,-1688.2,0.00026575,2]
[357484946,1744081864787,-1342.25,0.00026575,2]
[357484947,1744081864797,-524.38773213,0.00026575,2]
[357484948,1744081864807,-958.86,0.00026575,2]
[357484949,1744081864817,-1653.17,0.00026575,2]
[357484950,1744081864827,-2115.74,0.00026575,2]
[357484951,1744081864837,-1255.28,0.00026575,2]
[357484952,1744081864848,-912.84,0.00026575,2]
[357484953,1744081864858,-515.31,0.00026575,2]
[357484954,1744081864870,-828.11,0.00026575,2]
[357484955,1744081864884,-522.7,0.00026575,2]
[357484956,1744081864896,-665.53,0.00026575,2]
[357484957,1744081864906,-500.0,0.00026575,2]
[357484958,1744081864915,-500.0,0.00026575,2]
[357484959,1744081864926,-592.81,0.00026575,2]
[357484960,1744081864936,-1007.96,0.00026575,2]
[357484961,1744081864946,-319.46589594,0.00026575,2]
[357484962,1744081864957,-1513.92,0.00026575,2]
[357484963,1744081864967,-1267.41,0.00026575,2]
[357484964,1744081864977,-500.0,0.00026575,2]
[357484965,1744081864987,-1030.35,0.00026575,2]
[357484966,1744081864997,-4108.07,0.00026575,2]
[357484967,1744081865007,-1082.33,0.00026575,2]
[357484968,1744081865016,-500.0,0.00026575,2]
[357484969,1744081865026,-543.95,0.00026575,2]
[357484970,1744081865036,-1330.51,0.00026575,2]
[357484971,1744081865045,-1439.3,0.00026575,2]
[357484972,1744081865055,-836.08,0.00026575,2]
[357484973,1744081865066,-961.73,0.00026575,2]
[357484974,1744081865076,-151.0,0.00026575,7]
[357484975,1744081865086,-1514.49,0.00026575,2]
[357484976,1744081865096,-1141.15,0.00026575,2]
[357484977,1744081865106,-792.22,0.00026575,2]
[357484978,1744081865117,-151.0,0.00026575,7]
[357484979,1744081865127,-201.220329,0.00026575,7]
[357484980,1744081865136,-2372.07,0.00026575,2]
[357484981,1744081865146,-910.81,0.00026575,2]
[357484982,1744081865157,-1896.06,0.00026575,2]
[357484983,1744081865167,-1257.28,0.00026575,2]
[357484984,1744081865177,-866.78,0.00026575,2]
[357484985,1744081865187,-884.67,0.00026575,2]
[357484986,1744081865197,-151.0,0.00026575,7]
[357484987,1744081865207,-1740.48,0.00026575,2]
[357484988,1744081865217,-536.56,0.00026575,2]
[357484989,1744081865226,-500.0,0.00026575,2]
[357484990,1744081865236,-969.19,0.00026575,2]
[357484991,1744081865246,-1688.58,0.00026575,2]
[357484992,1744081865257,-954.3,0.00026575,2]
[357484993,1744081865267,-1338.67,0.00026575,2]
[357484994,1744081865277,-6846.45,0.00026575,2]
[357484995,1744081865287,-653.14,0.00026575,2]
[357484996,1744081865297,-500.0,0.00026575,2]
[357484997,1744081865310,-2803.81,0.00026849,2]
[357484998,1744081865320,-462.10171552,0.00026849,2]
[357484999,1744081865330,-968.81,0.00026849,2]
[357485000,1744081865342,-500.47,0.00026849,2]
[357485001,1744081865352,-294.21172138,0.00026849,2]
[357485002,1744081865362,-809.84,0.00026849,2]
[357485003,1744081865372,-764.08,0.00026849,2]
[357485004,1744081865384,-511.46,0.00026849,2]
[357485005,1744081865394,-921.48,0.00026849,2]
[357485006,1744081865404,-550.16,0.00026849,2]
[357485007,1744081865414,-930.44,0.00026849,2]
[357485008,1744081865424,-647.67,0.00026849,2]
[357485009,1744081865434,-500.0,0.00026849,2]
[357485010,1744081865444,-556.88,0.00026849,2]
[357485011,1744081865455,-819.25,0.00026849,2]
[357485012,1744081865465,-500.0,0.00026849,2]
[357485013,1744081865475,-789.79,0.00026849,2]
[357485014,1744081865485,-444.57520056,0.00026849,2]
[357485015,1744081865496,-1688.2,0.00026849,2]
[357485016,1744081865506,-1342.25,0.00026849,2]
[357485017,1744081865516,-958.86,0.00026849,2]
[357485018,1744081865526,-1653.17,0.00026849,2]
[357485019,1744081865536,-235.22656,0.00026849,7]
[357485020,1744081865546,-2115.74,0.00026849,2]
[357485021,1744081865556,-1255.28,0.00026849,2]
[357485022,1744081865567,-912.84,0.00026849,2]
[357485023,1744081865577,-151.0,0.00026849,7]
[357485024,1744081865588,-515.31,0.00026849,2]
[357485025,1744081865598,-1702.022067,0.00026849,2]
[357485026,1744081865608,-1702.022067,0.00026849,2]
[357485027,1744081865619,-828.11,0.00026849,2]
[357485028,1744081865630,-522.7,0.00026849,2]
[357485029,1744081865640,-665.53,0.00026849,2]
[357485030,1744081865650,-500.0,0.00026849,2]
[357485031,1744081865660,-592.81,0.00026849,2]
[357485032,1744081865671,-500.0,0.00026849,2]
[357485033,1744081865682,-1007.96,0.00026849,2]
[357485034,1744081865693,-1513.92,0.00026849,2]
[357485035,1744081865703,-1267.41,0.00026849,2]
[357485036,1744081865713,-382.22262429,0.00026849,2]
[357485037,1744081865725,-1030.35,0.00026849,2]
[357485038,1744081865737,-4108.07,0.00026849,2]
[357485039,1744081865748,-1082.33,0.00026849,2]
[357485040,1744081865758,-500.0,0.00026849,2]
[357485041,1744081865768,-543.95,0.00026849,2]
[357485042,1744081865778,-1330.51,0.00026849,2]
[357485043,1744081865788,-1439.3,0.00026849,2]
[357485044,1744081865799,-836.08,0.00026849,2]
[357485045,1744081865809,-961.73,0.00026849,2]
[357485046,1744081865820,-1514.49,0.00026849,2]
[357485047,1744081865830,-1141.15,0.00026849,2]
[357485048,1744081865840,-792.22,0.00026849,2]
[357485049,1744081865850,-2372.07,0.00026849,2]
[357485050,1744081865860,-910.81,0.00026849,2]
[357485051,1744081865872,-1896.06,0.00026849,2]
[357485052,1744081865883,-1257.28,0.00026849,2]
[357485053,1744081865893,-866.78,0.00026849,2]
[357485054,1744081865903,-884.67,0.00026849,2]
[357485055,1744081865913,-1740.48,0.00026849,2]
[357485056,1744081865923,-536.56,0.00026849,2]
[357485057,1744081865934,-500.0,0.00026849,2]
[357485058,1744081865944,-969.19,0.00026849,2]
[357485059,1744081865954,-1688.58,0.00026849,2]
[357485060,1744081865964,-954.3,0.00026849,2]
[357485061,1744081865974,-1338.67,0.00026849,2]
[357485062,1744081865985,-6846.45,0.00026849,2]
[357485063,1744081865995,-653.14,0.00026849,2]
[357485064,1744081866007,-500.0,0.00026849,2]
[357485065,1744081866018,-231.28369723,0.0002688,2]
[357485066,1744081866031,-2803.81,0.00027123,2]
[357485067,1744081866043,-968.81,0.00027123,2]
[357485068,1744081866056,-500.47,0.00027123,2]
[357485069,1744081866067,-809.84,0.00027123,2]
[357485070,1744081866077,-764.08,0.00027123,2]
[357485071,1744081866087,-511.46,0.00027123,2]
[357485072,1744081866098,-921.48,0.00027123,2]
[357485073,1744081866108,-550.16,0.00027123,2]
[357485074,1744081866119,-151.0,0.00027123,7]
[357485075,1744081866129,-151.0,0.00027123,7]
[357485076,1744081866138,-151.183217,0.00027123,7]
[357485077,1744081866148,-930.44,0.00027123,2]
[357485078,1744081866159,-647.67,0.00027123,2]
[357485079,1744081866170,-151.0,0.00027123,7]
[357485080,1744081866180,-521.80983,0.00027123,7]
[357485081,1744081866190,-521.80983,0.00027123,7]
[357485082,1744081866200,-404.96331053,0.00027123,2]
[357485083,1744081866210,-556.88,0.00027123,2]
[357485084,1744081866220,-819.25,0.00027123,2]
[357485085,1744081866230,-151.0,0.00027123,7]
[357485086,1744081866240,-500.0,0.00027123,2]
[357485087,1744081866251,-789.79,0.00027123,2]
[357485088,1744081866261,-1688.2,0.00027123,2]
[357485089,1744081866272,-1342.25,0.00027123,2]
[357485090,1744081866282,-958.86,0.00027123,2]
[357485091,1744081866292,-1653.17,0.00027123,2]
[357485092,1744081866304,-2115.74,0.00027123,2]
[357485093,1744081866314,-1255.28,0.00027123,2]
[357485094,1744081866325,-912.84,0.00027123,2]
[357485095,1744081866335,-515.31,0.00027123,2]
[357485096,1744081866347,-828.11,0.00027123,2]
[357485097,1744081866358,-522.7,0.00027123,2]
[357485098,1744081866368,-665.53,0.00027123,2]
[357485099,1744081866379,-290.17853146,0.00027123,2]
[357485100,1744081866392,-592.81,0.00027123,2]
[357485101,1744081866402,-315.32199874,0.00027123,2]
[357485102,1744081866412,-1007.96,0.00027123,2]
[357485103,1744081866423,-1513.92,0.00027123,2]
[357485104,1744081866433,-1267.41,0.00027123,2]
[357485105,1744081866444,-1030.35,0.00027123,2]
[357485106,1744081866454,-4108.07,0.00027123,2]
[357485107,1744081866465,-1082.33,0.00027123,2]
[357485108,1744081866477,-500.0,0.00027123,2]
[357485109,1744081866487,-543.95,0.00027123,2]
[357485110,1744081866497,-1330.51,0.00027123,2]
[357485111,1744081866507,-1439.3,0.00027123,2]
[357485112,1744081866518,-836.08,0.00027123,2]
[357485113,1744081866528,-961.73,0.00027123,2]
[357485114,1744081866538,-1514.49,0.00027123,2]
[357485115,1744081866549,-1141.15,0.00027123,2]
[357485116,1744081866559,-792.22,0.00027123,2]
[357485117,1744081866570,-2372.07,0.00027123,2]
[357485118,1744081866580,-910.81,0.00027123,2]
[357485119,1744081866591,-1896.06,0.00027123,2]
[357485120,1744081866601,-1257.28,0.00027123,2]
[357485121,1744081866612,-866.78,0.00027123,2]
[357485122,1744081866624,-884.67,0.00027123,2]
[357485123,1744081866634,-1740.48,0.00027123,2]
[357485124,1744081866644,-536.56,0.00027123,2]
[357485125,1744081866655,-500.0,0.00027123,2]
[357485126,1744081866665,-969.19,0.00027123,2]
[357485127,1744081866676,-1688.58,0.00027123,2]
[357485128,1744081866686,-954.3,0.00027123,2]
[357485129,1744081866697,-1338.67,0.00027123,2]
[357485130,1744081866708,-3374.56227473,0.00027123,2]
[357485131,1744081867304,-153.374637,0.00022739,2]
[357485132,1744081867541,-500.0,0.00021917,2]
[357485133,1744081867551,-500.0,0.00021917,2]
[357485134,1744081867560,-500.0,0.00022191,2]
[357485135,1744081867571,-253.96665056,0.00022465,2]
[357485136,1744081867581,-346.625363,0.00022739,2]
[357485137,1744081867592,-500.0,0.00023013,2]
[357485138,1744081867602,-178.9,0.00023187,2]
[357485139,1744081867612,-500.0,0.00023287,2]
[357485140,1744081867622,-12.61056624,0.00023561,2]
[357485141,1744081867638,-487.38943376,0.00023561,2]
[357485142,1744081867648,-263.79865415,0.00023835,2]
[357485143,1744081867660,-236.20134585,0.00023835,2]
[357485144,1744081867670,-1149.97,0.00023835,2]
[357485145,1744081867680,-500.32183657,0.00023835,2]
[357485146,1744081867691,-500.0,0.00024109,2]
[357485147,1744081867701,-1149.97,0.00024109,2]
[357485148,1744081867711,-500.0,0.00024383,2]
[357485149,1744081867721,-1149.97,0.00024383,2]
[357485150,1744081867731,-500.0,0.00024657,2]
[357485151,1744081867741,-1149.97,0.00024657,2]
[357485152,1744081867751,-1149.97,0.00024931,2]
[357485153,1744081867760,-575.99238763,0.00024931,2]
[357485154,1744081867770,-1391.18,0.00025205,2]
[357485155,1744081867780,-1149.97,0.00025205,2]
[357485156,1744081867789,-1391.18,0.00025479,2]
[357485157,1744081867799,-1149.97,0.00025479,2]
[357485158,1744081867810,-1391.18,0.00025753,2]
[357485159,1744081867819,-167.92845964,0.00025753,2]
[357485167,1744082434788,450.0,0.00022,10]
[357485178,1744082829446,-202.132488,0.00020157,2]
[357485179,1744082829468,-12.69817989,0.00020742,2]
[357485200,1744083031762,-3052.75317001,0.00020742,2]
[357485201,1744083031772,-300.0,0.00020771,2]
[357485202,1744083031783,-500.0,0.00020772,2]
[357485203,1744083031793,-1459.24,0.00020772,2]
[357485204,1744083031803,-1514.67,0.00020772,2]
[357485205,1744083031814,-536.03,0.00020772,2]
[357485206,1744083031824,-500.0,0.00020772,2]
[357485207,1744083031834,-500.0,0.00020773,2]
[357485208,1744083031844,-583.065375,0.00020773,2]
[357485209,1744083031854,-500.0,0.00020773,2]
[357485210,1744083031865,-510.97349806,0.00020773,2]
[357485211,1744083031875,-500.0,0.00020773,2]
[357485212,1744083031886,-500.0,0.00020773,2]
[357485213,1744083031896,-500.0,0.00020773,2]
[357485214,1744083031912,-500.0,0.00020773,2]
[357485216,1744083031923,-500.0,0.00020773,2]
[357485218,1744083031934,-500.0,0.00020773,2]
[357485220,1744083031945,-623.99,0.00020773,2]
[357485222,1744083031956,-500.0,0.00020773,2]
[357485224,1744083031968,-418.07497593,0.00020773,2]
[357485226,1744083031982,-81.92502407,0.00020773,2]
[357485228,1744083031993,-277.41869673,0.00020773,2]
[357485231,1744083032006,-1046.87130327,0.00020773,2]
[357485233,1744083032016,-500.0,0.00020773,2]
[357485235,1744083032026,-500.0,0.00020773,2]
[357485237,1744083032037,-500.0,0.00020773,2]
[357485239,1744083032047,-500.0,0.00020773,2]
[357485241,1744083032057,-1015.28,0.00020773,2]
[357485243,1744083032068,-703.08,0.00020773,2]
[357485245,1744083032078,-1033.13,0.00020773,2]
[357485248,1744083032088,-500.0,0.00020773,2]
[357485250,1744083032098,-1145.94,0.00020773,2]
[357485252,1744083032109,-500.0,0.00020773,2]
[357485254,1744083032119,-500.0,0.00020773,2]
[357485256,1744083032130,-500.0,0.00020773,2]
[357485257,1744083032141,-500.0,0.00020773,2]
[357485258,1744083032151,-500.0,0.00020773,2]
[357485259,1744083032161,-500.0,0.00020773,2]
[357485260,1744083032171,-1260.38,0.00020773,2]
[357485261,1744083032181,-500.0,0.00020773,2]
[357485262,1744083032191,-1222.96,0.00020773,2]
[357485263,1744083032202,-500.0,0.00020773,2]
[357485264,1744083032212,-500.0,0.00020773,2]
[357485265,1744083032222,-500.0,0.00020773,2]
[357485266,1744083032232,-500.0,0.00020773,2]
[357485267,1744083032242,-500.0,0.00020773,2]
[357485268,1744083032252,-500.0,0.00020773,2]
[357485269,1744083032262,-500.0,0.00020773,2]
[357485270,1744083032272,-500.0,0.00020773,2]
[357485271,1744083032281,-500.0,0.00020773,2]
[357485272,1744083032291,-500.0,0.00020773,2]
[357485273,1744083032300,-500.0,0.00020773,2]
[357485274,1744083032311,-500.0,0.00020773,2]
[357485275,1744083032320,-500.0,0.00020773,2]
[357485276,1744083032330,-500.0,0.00020773,2]
[357485277,1744083032340,-509.71578883,0.00020773,2]
[357485278,1744083032350,-528.77,0.00020773,2]
[357485279,1744083032359,-500.0,0.00020773,2]
[357485280,1744083032369,-500.0,0.00020773,2]
[357485281,1744083032378,-1021.44,0.00020773,2]
[357485282,1744083032388,-500.0,0.00020773,2]
[357485283,1744083032397,-500.0,0.00020773,2]
[357485284,1744083032408,-2104.84,0.00020773,2]
[357485285,1744083032419,-635.09674477,0.00020773,2]
[357485286,1744083032432,-12.59325523,0.00020773,2]
[357485287,1744083032442,-453.94340699,0.00020773,2]
[357485288,1744083032456,-705.33659301,0.00020773,2]
[357485289,1744083032466,-714.58,0.00020773,2]
[357485290,1744083032476,-500.0,0.00020773,2]
[357485291,1744083032487,-500.0,0.00020773,2]
[357485292,1744083032497,-500.0,0.00020773,2]
[357485293,1744083032507,-572.96733991,0.00020831,2]
[357485294,1744083032520,-820.0,0.00021,2]
[357485295,1744083032530,-500.0,0.00021046,2]
[357485296,1744083032540,-944.88,0.00021046,2]
[357485297,1744083032550,-500.0,0.00021046,2]
[357485298,1744083032560,-500.0,0.00021046,2]
[357485299,1744083032571,-1154.64,0.00021046,2]
[357485300,1744083032581,-656.97,0.00021046,2]
[357485301,1744083032592,-500.0,0.00021046,2]
[357485302,1744083032602,-3167.03941665,0.00021046,2]
[357485303,1744083032616,-1720.81058335,0.00021046,2]
[357485304,1744083032626,-500.0,0.00021046,2]
[357485305,1744083032640,-500.0,0.00021046,2]
[357485306,1744083032650,-1459.24,0.00021046,2]
[357485307,1744083032661,-1754.0,0.00021046,2]
[357485308,1744083032671,-1732.42,0.00021046,2]
[357485309,1744083032682,-1514.67,0.00021046,2]
[357485310,1744083032693,-1042.87,0.00021046,2]
[357485311,1744083032702,-500.0,0.00021046,2]
[357485312,1744083032714,-992.47,0.00021046,2]
[357485313,1744083032725,-2709.7,0.00021046,2]
[357485314,1744083032735,-500.0,0.00021046,2]
[357485315,1744083032745,-536.03,0.00021046,2]
[357485316,1744083032755,-500.0,0.00021046,2]
[357485317,1744083032766,-665.17,0.00021046,2]
[357485318,1744083032776,-1546.39,0.00021046,2]
[357485319,1744083032786,-1947.78,0.00021046,2]
[357485320,1744083032796,-500.0,0.00021046,2]
[357485321,1744083032807,-500.0,0.00021046,2]
[357485322,1744083032817,-500.0,0.00021047,2]
[357485323,1744083032827,-500.0,0.00021047,2]
[357485324,1744083032838,-500.0,0.00021047,2]
[357485325,1744083032848,-500.0,0.00021047,2]
[357485326,1744083032858,-500.0,0.00021047,2]
[357485327,1744083032869,-509.49125095,0.00021047,2]
[357485328,1744083032879,-500.0,0.00021047,2]
[357485329,1744083032889,-500.0,0.00021047,2]
[357485330,1744083032899,-623.99,0.00021047,2]
[357485331,1744083032909,-500.0,0.00021047,2]
[357485332,1744083032921,-500.0,0.00021047,2]
[357485333,1744083032931,-1324.29,0.00021047,2]
[357485334,1744083032941,-500.0,0.00021047,2]
[357485335,1744083032951,-500.0,0.00021047,2]
[357485336,1744083032961,-500.0,0.00021047,2]
[357485337,1744083032972,-500.0,0.00021047,2]
[357485338,1744083032983,-1015.28,0.00021047,2]
[357485339,1744083032993,-703.08,0.00021047,2]
[357485340,1744083033003,-1033.13,0.00021047,2]
[357485341,1744083033014,-503.0306758,0.00021047,2]
[357485342,1744083033024,-337.0834519,0.00021047,2]
[357485350,1744083037825,-358.12697751,0.00020772,2]
[357485351,1744083037935,-141.87302249,0.00020772,2]
[357485352,1744083037945,-500.0,0.00020772,2]
[357485353,1744083037955,-500.0,0.00021046,2]
[357485354,1744083037965,-500.0,0.00021046,2]
[357485355,1744083037975,-500.0,0.00021046,2]
[357485356,1744083037986,-500.0,0.00021046,2]
[357485357,1744083037996,-500.0,0.00021046,2]
[357485358,1744083038006,-500.0,0.00021046,2]
[357485359,1744083038016,-500.0,0.00021046,2]
[357485360,1744083038026,-500.0,0.00021046,2]
[357485361,1744083038035,-500.0,0.00021046,2]
[357485363,1744083038046,-500.0,0.00021046,2]
[357485364,1744083038055,-500.0,0.00021046,2]
[357485365,1744083038065,-650.0,0.00021046,2]
[357485366,1744083038075,-808.8565481,0.00021047,2]
[357485367,1744083038085,-500.0,0.00021047,2]
[357485368,1744083038095,-500.0,0.00021047,2]
[357485369,1744083038105,-500.0,0.00021047,2]
[357485370,1744083038115,-500.0,0.00021047,2]
[357485371,1744083038125,-500.0,0.00021047,2]
[357485372,1744083038134,-500.0,0.00021047,2]
[357485373,1744083038144,-1260.38,0.00021047,2]
[357485374,1744083038153,-225.88796031,0.00021047,2]
[357485375,1744083038163,-1222.96,0.00021047,2]
[357485376,1744083038174,-236.33364969,0.00021047,2]
[357485377,1744083038184,-500.0,0.00021047,2]
[357485378,1744083038194,-500.0,0.00021047,2]
[357485379,1744083038204,-500.0,0.00021047,2]
[357485380,1744083038215,-500.0,0.00021047,2]
[357485381,1744083038225,-500.0,0.00021047,2]
[357485382,1744083038235,-165.56989412,0.00021047,2]
[357485383,1744083038245,-500.0,0.00021047,2]
[357485384,1744083038255,-500.0,0.00021047,2]
[357485385,1744083038265,-500.0,0.00021047,2]
[357485386,1744083038275,-508.9054363,0.00021047,2]
[357485387,1744083038285,-500.0,0.00021047,2]
[357485388,1744083038294,-500.0,0.00021047,2]
[357485389,1744083038304,-500.0,0.00021047,2]
[357485390,1744083038314,-528.77,0.00021047,2]
[357485391,1744083038324,-500.0,0.00021047,2]
[357485392,1744083038334,-500.0,0.00021047,2]
[357485393,1744083038344,-1021.44,0.00021047,2]
[357485394,1744083038354,-500.0,0.00021047,2]
[357485395,1744083038364,-500.0,0.00021047,2]
[357485396,1744083038374,-2104.84,0.00021047,2]
[357485397,1744083038384,-647.69,0.00021047,2]
[357485398,1744083038394,-1159.28,0.00021047,2]
[357485399,1744083038404,-714.58,0.00021047,2]
[357485400,1744083038414,-500.0,0.00021047,2]
[357485401,1744083038425,-500.0,0.00021047,2]
[357485402,1744083038435,-500.0,0.00021047,2]
[357485403,1744083038444,-373.83517709,0.0002122,2]
[357485404,1744083038454,-151.0,0.00021304,2]
[357485405,1744083038464,-200.0,0.00021304,2]
[357485406,1744083038474,-661.31984609,0.00021316,2]
[357485407,1744083038484,-579.96524837,0.00021316,2]
[357485408,1744083038493,-500.0,0.00021316,2]
[357485409,1744083038504,-500.0,0.00021316,2]
[357485410,1744083038514,-500.0,0.00021316,2]
[357485411,1744083038523,-500.0,0.00021316,2]
[357485412,1744083038534,-500.0,0.00021316,2]
[357485413,1744083038544,-500.0,0.00021316,2]
[357485414,1744083038553,-500.0,0.00021316,2]
[357485415,1744083038562,-586.9,0.00021316,2]
[357485416,1744083038573,-500.0,0.00021316,2]
[357485417,1744083038583,-500.0,0.00021316,2]
[357485418,1744083038592,-500.0,0.00021316,2]
[357485419,1744083038602,-500.0,0.00021316,2]
[357485420,1744083038611,-677.05,0.00021316,2]
[357485421,1744083038622,-500.0,0.00021316,2]
[357485422,1744083038632,-500.0,0.00021316,2]
[357485423,1744083038645,-500.0,0.00021316,2]
[357485424,1744083038655,-513.7883961,0.00021316,2]
[357485425,1744083038665,-551.47,0.00021316,2]
[357485426,1744083038677,-500.0,0.00021316,2]
[357485427,1744083038687,-548.88078245,0.00021316,2]
[357485428,1744083038697,-500.0,0.00021316,2]
[357485429,1744083038707,-500.0,0.00021316,2]
[357485430,1744083038718,-500.0,0.00021316,2]
[357485431,1744083038728,-504.03480057,0.00021316,2]
[357485432,1744083038739,-500.0,0.00021316,2]
[357485433,1744083038749,-500.0,0.00021316,2]
[357485434,1744083038758,-653.92,0.00021316,2]
[357485435,1744083038768,-500.0,0.00021316,2]
[357485436,1744083038778,-500.0,0.00021316,2]
[357485437,1744083038788,-500.0,0.00021316,2]
[357485438,1744083038802,-500.0,0.00021316,2]
[357485439,1744083038812,-500.0,0.00021316,2]
[357485440,1744083038822,-730.84,0.00021316,2]
[357485441,1744083038833,-506.33839603,0.00021316,2]
[357485442,1744083038844,-500.0,0.00021316,2]
[357485443,1744083038854,-505.39327323,0.00021316,2]
[357485444,1744083038864,-500.0,0.00021316,2]
[357485445,1744083038875,-858.61,0.00021316,2]
[357485446,1744083038884,-500.0,0.00021316,2]
[357485447,1744083038895,-500.0,0.00021316,2]
[357485448,1744083038904,-500.0,0.00021316,2]
[357485449,1744083038914,-1066.41,0.00021316,2]
[357485450,1744083038925,-500.0,0.00021316,2]
[357485451,1744083038935,-274.23868181,0.00021316,2]
[357485452,1744083038945,-500.66225014,0.00021316,2]
[357485453,1744083038956,-500.0,0.00021316,2]
[357485454,1744083038966,-500.0,0.00021316,2]
[357485455,1744083038976,-500.0,0.00021316,2]
[357485456,1744083038986,-500.0,0.00021316,2]
[357485457,1744083038996,-500.0,0.00021316,2]
[357485458,1744083039007,-500.0,0.00021316,2]
[357485459,1744083039017,-506.71,0.00021316,2]
[357485460,1744083039027,-213.74858961,0.00021316,2]
[357485461,1744083039037,-500.0,0.00021316,2]
[357485462,1744083039048,-500.0,0.00021316,2]
[357485463,1744083039058,-500.0,0.00021316,2]
[357485464,1744083039068,-500.0,0.00021316,2]
[357485465,1744083039079,-535.6744836,0.00021316,2]
[357485466,1744083039088,-500.0,0.00021316,2]
[357485467,1744083039099,-500.0,0.00021316,2]
[357485468,1744083039109,-500.0,0.00021316,2]
[357485469,1744083039118,-1000.78,0.00021316,2]
[357485470,1744083039128,-500.0,0.00021316,2]
[357485471,1744083039139,-500.0,0.00021316,2]
[357485472,1744083039149,-500.0,0.00021316,2]
[357485473,1744083039159,-500.0,0.00021316,2]
[357485474,1744083039170,-500.0,0.00021316,2]
[357485475,1744083039180,-500.0,0.00021316,2]
[357485476,1744083039190,-500.0,0.00021316,2]
[357485477,1744083039199,-500.0,0.00021316,2]
[357485478,1744083039209,-500.0,0.00021316,2]
[357485479,1744083039219,-500.0,0.00021316,2]
[357485480,1744083039229,-1735.98,0.00021316,2]
[357485481,1744083039239,-500.0,0.00021316,2]
[357485482,1744083039249,-523.27,0.00021316,2]
[357485483,1744083039259,-500.0,0.00021316,2]
[357485484,1744083039270,-784.63,0.00021316,2]
[357485485,1744083039279,-2072.68,0.00021316,2]
[357485486,1744083039289,-500.0,0.00021316,2]
[357485487,1744083039299,-747.85,0.00021316,2]
[357485488,1744083039309,-1220.43,0.00021316,2]
[357485489,1744083039320,-500.0,0.00021316,2]
[357485490,1744083039329,-500.0,0.00021316,2]
[357485491,1744083039340,-500.0,0.00021316,2]
[357485492,1744083039350,-500.0,0.00021316,2]
[357485493,1744083039360,-1360.36,0.00021316,2]
[357485494,1744083039370,-500.0,0.00021316,2]
[357485495,1744083039380,-500.0,0.00021316,2]
[357485496,1744083039390,-1028.62,0.00021316,2]
[357485497,1744083039400,-500.0,0.00021316,2]
[357485498,1744083039410,-500.0,0.00021316,2]